fUST/lending_fUST_20251223
["ID","MTS","AMOUNT","RATE_DAILY","PERIOD"]
[399549040,1766475043976,-655.8,0.000113,2]
[399549042,1766475043986,-655.8,0.000114,2]
[399549044,1766475043995,-8644.04680532,0.00012,2]
[399549060,1766475067841,2540.6,6.9e-05,2]
[399549061,1766475152693,150.59,6.9e-05,2]
[399549062,1766475202479,2492.8,6.9e-05,2]
[399549063,1766475263274,176.35,6.9e-05,2]
[399549065,1766475325788,186.21572812,6.9e-05,2]
[399549066,1766475325811,2260.25427188,6.9e-05,2]
[399549067,1766475384920,221.75,6.9e-05,2]
[399549068,1766475444365,2401.98,6.9e-05,2]
[399549069,1766475454727,5000.0,6.9e-05,2]
[399549070,1766475469156,150.0,0.00013224,30]
[399549071,1766475469582,150.0,0.00013854,30]
[399549072,1766475477461,5000.0,6.9e-05,2]
[399549073,1766475483988,162.25,9.99e-06,2]
[399549074,1766475484246,162.25,9.99e-06,2]
[399549075,1766475484646,162.23,9.99e-06,2]
[399549076,1766475500349,4513.28,6.9e-05,2]
[399549077,1766475500373,486.72,6.9e-05,2]
[399549078,1766475508574,265.35,6.9e-05,2]
[399549079,1766475523290,5000.0,6.9e-05,2]
[399549080,1766475546949,4247.94,6.9e-05,2]
[399549081,1766475546971,752.06,6.9e-05,2]
[399549082,1766475547343,150.0,0.00013145,30]
[399549083,1766475547759,150.0,0.00013771,30]
[399549084,1766475562396,1118.41290804,6.9e-05,2]
[399549085,1766475564267,2359.25,6.9e-05,2]
[399549087,1766475570235,4336.39799167,6.9e-05,2]
[399549088,1766475594337,1433.88910029,6.9e-05,2]
[399549089,1766475632920,-361.42174463,6.9e-05,2]
[399549090,1766475637765,-156.57825537,6.9e-05,2]
[399549091,1766475637788,-307.23,6.9e-05,2]
[399549092,1766475637812,-291.90579301,6.9e-05,2]
[399549094,1766475696732,150.0,0.00013559,30]
[399549095,1766475754930,-243.15425436,6.9e-05,2]
[399549096,1766475757742,-197.09218593,6.9e-05,2]
[399549097,1766475759222,-647.20197421,6.9e-05,2]
[399549098,1766475760876,-243.77411025,6.9e-05,2]
[399549099,1766475762406,-226.03353956,6.9e-05,2]
[399549100,1766475887876,-1077.48957306,6.9e-05,2]
[399549101,1766475889323,-206.85711215,6.9e-05,2]
[399549102,1766475893331,-347.8577275,6.9e-05,2]
[399549103,1766475895174,-251.26341123,6.9e-05,2]
[399549104,1766475897817,-267.73658877,6.9e-05,2]
[399549105,1766475932868,-226.12855687,6.9e-05,2]
[399549106,1766475953872,317.428407,6.892e-05,2]
[399549107,1766475993247,-453.10035493,6.9e-05,2]
[399549108,1766475998701,-269.28538259,6.9e-05,2]
[399549109,1766476000274,453.10035493,6.892e-05,2]
[399549110,1766476001362,-154.05336445,6.9e-05,2]
[399549111,1766476005427,-156.80490251,6.9e-05,2]
[399549112,1766476007658,-247.48699336,6.9e-05,2]
[399549113,1766476009355,-496.66397761,6.9e-05,2]
[399549114,1766476012582,-403.1057111,6.9e-05,2]
[399549115,1766476024279,1727.40033162,6.892e-05,2]
[399549116,1766476047826,4616.99382931,6.892e-05,2]
[399549117,1766476071199,2885.08707714,6.892e-05,2]
[399549118,1766476071223,1474.29755803,6.892e-05,2]
[399549119,1766476112860,-417.03923141,6.9e-05,2]
[399549120,1766476114496,-200.0,6.9e-05,2]
[399549121,1766476116623,-432.50356156,6.9e-05,2]
[399549122,1766476118796,-670.79360496,6.9e-05,2]
[399549123,1766476122086,-322.31467178,6.9e-05,2]
[399549124,1766476131989,322.31467178,6.892e-05,2]
[399549125,1766476159117,-3381.92689177,7.053e-05,2]
[399549126,1766476159138,-157.62729814,7.124e-05,2]
[399549127,1766476159160,-113.88581009,7.199e-05,2]
[399549128,1766476173531,-381.04204473,6.9e-05,2]
[399549129,1766476178162,381.04204473,6.892e-05,2]
[399549153,1766476231632,-2171.72,6.9e-05,2]
[399549155,1766476231642,-2171.72,7e-05,2]
[399549157,1766476231652,-2171.72,7.1e-05,2]
[399549159,1766476231662,-1720.33639793,7.127e-05,2]
[399549161,1766476231671,-521.0,7.127e-05,2]
[399549163,1766476231681,-401.65291008,7.199e-05,2]
[399549165,1766476231691,-2171.72,7.2e-05,2]
[399549167,1766476231700,-2171.72,7.3e-05,2]
[399549169,1766476231710,-2171.72,7.4e-05,2]
[399549171,1766476231720,-2171.72,7.5e-05,2]
[399549173,1766476231729,-2171.72,7.6e-05,2]
[399549175,1766476231739,-2171.72,7.7e-05,2]
[399549177,1766476231748,-2171.72,7.8e-05,2]
[399549179,1766476231758,-1055.94724866,7.9e-05,2]
[399549182,1766476231770,-418.0,7.9e-05,2]
[399549184,1766476231781,-697.77275134,7.9e-05,2]
[399549185,1766476231791,-2171.72,8e-05,2]
[399549186,1766476231801,-63.46947123,8.1e-05,2]
[399549187,1766476231816,-502.10012059,8.1e-05,2]
[399549197,1766476237701,-1606.15040818,8.1e-05,2]
[399549198,1766476237711,-590.1483424,8.2e-05,2]
[399549199,1766476237745,-1581.5716576,8.2e-05,2]
[399549200,1766476237755,-290.0,8.399e-05,2]
[399549201,1766476237765,-2171.72,8.4e-05,2]
[399549202,1766476237775,-1200.0,8.499e-05,2]
[399549203,1766476237784,-436.732608,8.5e-05,2]
[399549204,1766476237793,-436.732608,8.5e-05,2]
[399549205,1766476237802,-436.732608,8.5e-05,2]
[399549206,1766476237811,-436.732608,8.5e-05,2]
[399549207,1766476237821,-2171.72,8.5e-05,2]
[399549208,1766476237831,-2171.72,8.6e-05,2]
[399549209,1766476237841,-2171.72,8.7e-05,2]
[399549210,1766476237850,-2171.72,8.8e-05,2]
[399549211,1766476237859,-2171.72,8.9e-05,2]
[399549212,1766476237868,-1135.74,9e-05,2]
[399549213,1766476237878,-436.732608,9e-05,2]
[399549214,1766476237888,-436.732608,9e-05,2]
[399549215,1766476237897,-436.732608,9e-05,2]
[399549216,1766476237906,-436.732608,9e-05,2]
[399549217,1766476237916,-2171.72,9e-05,2]
[399549218,1766476237925,-2171.72,9.1e-05,2]
[399549219,1766476237934,-186.0002118,9.124e-05,2]
[399549220,1766476237943,-2171.72,9.2e-05,2]
[399549221,1766476237952,-2171.72,9.3e-05,2]
[399549222,1766476237960,-2171.72,9.4e-05,2]
[399549223,1766476237970,-436.732608,9.5e-05,2]
[399549224,1766476237979,-436.732608,9.5e-05,2]
[399549225,1766476237988,-436.732608,9.5e-05,2]
[399549226,1766476237997,-436.732608,9.5e-05,2]
[399549227,1766476238006,-2171.72,9.5e-05,2]
[399549228,1766476238016,-2171.72,9.6e-05,2]
[399549229,1766476238026,-2171.72,9.7e-05,2]
[399549230,1766476238035,-150.0,9.76e-05,2]
[399549231,1766476238044,-2171.72,9.8e-05,2]
[399549232,1766476238053,-214.59118349,9.879e-05,2]
[399549233,1766476238063,-386.26413028,9.879e-05,2]
[399549234,1766476238072,-686.69178717,9.879e-05,2]
[399549235,1766476238081,-1072.95591745,9.879e-05,2]
[399549236,1766476238090,-1545.05652113,9.879e-05,2]
[399549237,1766476238099,-2100.89060461,9.879e-05,2]
[399549238,1766476238108,-2171.72,9.9e-05,2]
[399549239,1766476238117,-436.732608,0.0001,2]
[399549240,1766476238127,-436.732608,0.0001,2]
[399549241,1766476238136,-436.732608,0.0001,2]
[399549242,1766476238146,-436.732608,0.0001,2]
[399549243,1766476238155,-500.0,0.00010151,2]
[399549244,1766476238164,-221.49250315,0.00010151,2]
[399549245,1766476238174,-398.68650567,0.00010151,2]
[399549246,1766476238183,-708.77601008,0.00010151,2]
[399549247,1766476238193,-1107.46251575,0.00010151,2]
[399549248,1766476238202,-1593.15127666,0.00010151,2]
[399549249,1766476238211,-175.76,0.00010225,2]
[399549250,1766476238221,-263.85145391,0.00010398,2]
[399549251,1766476238230,-474.93261703,0.00010398,2]
[399549252,1766476238239,-844.3246525,0.00010398,2]
[399549253,1766476238248,-1319.25726953,0.00010398,2]
[399549254,1766476238258,-1899.73046812,0.00010398,2]
[399549255,1766476238267,-2583.15850403,0.00010398,2]
[399549256,1766476238277,-436.732608,0.00010399,2]
[399549257,1766476238287,-436.732608,0.00010399,2]
[399549258,1766476238296,-436.732608,0.00010399,2]
[399549259,1766476238306,-436.7326,0.00010399,2]
[399549260,1766476238316,-263.64,0.00010689,2]
[399549261,1766476238325,-325.64400332,0.0001106,2]
[399549262,1766476238334,-214.37312547,0.00011124,2]
[399549263,1766476238343,-351.52,0.00011154,2]
[399549264,1766476238352,-9011.04444431,0.00011345,2]
[399549265,1766476238364,-3811.66792024,0.00011345,2]
[399549266,1766476238375,-14912.26947165,0.00011345,2]
[399549267,1766476238384,-342.66051675,0.00011402,2]
[399549268,1766476238393,-1267.3036295,0.0001141,2]
[399549269,1766476238403,-372.16457522,0.00011437,2]
[399549270,1766476238412,-439.4,0.00011619,2]
[399549271,1766476238421,-391.61201914,0.00011791,2]
[399549272,1766476238430,-581.50714879,0.00011814,2]
[399549273,1766476238439,-1107.50506997,0.00011886,2]
[399549274,1766476238448,-151.0,0.00011896,2]
[399549275,1766476238458,-156.587,0.00011896,2]
[399549276,1766476238467,-151.01453656,0.00011896,2]
[399549277,1766476238476,-254.65211633,0.00011896,2]
[399549278,1766476238490,-195.28981984,0.00011896,2]
[399549279,1766476238500,-195.16932979,0.00011896,2]
[399549280,1766476238509,-500.0,0.00011896,2]
[399549281,1766476238518,-309.98497316,0.00011896,2]
[399549282,1766476238528,-5800.08076292,0.00011896,2]
[399549283,1766476238539,-7996.19662887,0.00011896,2]
[399549284,1766476238550,-861.4296,0.00011896,2]
[399549351,1766476240237,-3e-08,0.0001,2]
[399549717,1766476371425,150.0,0.00012767,30]
[399549718,1766476371867,150.0,0.00013375,30]
[399549719,1766476372641,150.0,0.00013983,30]
[399549720,1766476629503,-781.82,6.9e-05,2]
[399549721,1766476629532,-781.82,7e-05,2]
[399549722,1766476629558,-313.90424489,7.029e-05,2]
[399549723,1766476629590,-156.83362962,7.2e-05,2]
[399549724,1766476629619,-185.06368295,9.2e-05,2]
[399549725,1766476629648,-150.0,9.794e-05,2]
[399549726,1766476629675,-300.0,9.999e-05,2]
[399549727,1766476629701,-1023.14975756,0.0001,2]
[399549728,1766476629842,-781.82,7.1e-05,2]
[399549729,1766476629851,-6241.89736996,0.0001,2]
[399549730,1766476672707,-781.82,7.2e-05,2]
[399549731,1766476672734,-150.0,7.25e-05,2]
[399549732,1766476672761,-781.82,7.3e-05,2]
[399549733,1766476672787,-781.82,7.4e-05,2]
[399549734,1766476672814,-781.82,7.5e-05,2]
[399549735,1766476672841,-781.82,7.6e-05,2]
[399549736,1766476672868,-781.82,7.7e-05,2]
[399549737,1766476672894,-781.82,7.8e-05,2]
[399549738,1766476672920,-781.82,7.9e-05,2]
[399549739,1766476672946,-781.82,8e-05,2]
[399549740,1766476672972,-781.82,8.1e-05,2]
[399549741,1766476672999,-781.82,8.2e-05,2]
[399549742,1766476673170,-2499.96,8.2e-05,2]
[399549746,1766477198272,-163.39,6.9e-05,2]
[399549747,1766477198293,-11.79546877,7.5e-05,2]
[399549804,1766477440134,-161.94,6.9e-05,2]
[399549805,1766477440143,-161.94,7.6e-05,2]
[399549806,1766477440153,-150.0,8.2e-05,2]
[399549807,1766477440162,-150.0,8.382e-05,2]
[399549808,1766477440172,-161.94,8.4e-05,2]
[399549809,1766477440182,-175.48,8.781e-05,2]
[399549810,1766477440191,-161.94,9.1e-05,2]
[399549811,1766477440201,-263.21,9.181e-05,2]
[399549812,1766477440215,-600.0,9.486e-05,2]
[399549813,1766477440225,-350.95,9.58e-05,2]
[399549814,1766477440234,-161.94,9.8e-05,2]
[399549815,1766477440244,-513.89396895,9.971e-05,2]
[399549816,1766477440254,-343.31184986,9.971e-05,2]
[399549817,1766477440264,-7355.31716398,9.972e-05,2]
[399549818,1766477440305,-34706.16655722,9.972e-05,2]
[399549819,1766477440316,-438.69,9.979e-05,2]
[399549820,1766477440326,-177.0,0.000102,2]
[399549821,1766477440335,-526.43,0.00010378,2]
[399549822,1766477440345,-720.0,0.00010435,2]
[399549823,1766477440355,-611.89377991,0.00010482,2]
[399549824,1766477440364,-836.53292396,0.00010482,2]
[399549825,1766477440374,-161.94,0.000105,2]
[399549826,1766477440384,-880.24591603,0.00010562,2]
[399549827,1766477440394,-5946.4623513,0.00010602,2]
[399549828,1766477440403,-614.16,0.00010777,2]
[399549829,1766477440413,-701.9,0.00011176,2]
[399549830,1766477440423,-161.94,0.000113,2]
[399549831,1766477440432,-864.0,0.00011478,2]
[399549832,1766477440442,-789.64,0.00011575,2]
[399549833,1766477440451,-251.17219751,0.00011693,2]
[399549834,1766477440461,-151.37895929,0.00011693,2]
[399549835,1766477440470,-533.88981491,0.00011693,2]
[399549836,1766477440480,-4302.36561422,0.00011693,2]
[399549837,1766477440492,-250.0,0.00011693,2]
[399549838,1766477440502,-2579.17784983,0.00011693,2]
[399549839,1766477440862,-1000.0,0.00011693,2]
[399549840,1766477440872,-1000.0,0.00011693,2]
[399549841,1766477440882,-151.0,0.00011693,2]
[399549842,1766477440891,-1000.0,0.00011693,2]
[399549843,1766477440900,-151.05568249,0.00011693,2]
[399549844,1766477440909,-151.0,0.00011693,2]
[399549845,1766477440918,-1000.0,0.00011693,2]
[399549846,1766477440928,-151.0,0.00011693,2]
[399549847,1766477440937,-1000.0,0.00011693,2]
[399549848,1766477440946,-151.0,0.00011693,2]
[399549849,1766477440956,-1000.0,0.00011693,2]
[399549850,1766477440969,-151.0,0.00011693,2]
[399549851,1766477440978,-1007.99793701,0.00011693,2]
[399549852,1766477440987,-151.0,0.00011693,2]
[399549853,1766477440996,-151.0,0.00011693,2]
[399549854,1766477441006,-151.0,0.00011693,2]
[399549855,1766477441016,-151.0,0.00011693,2]
[399549856,1766477441026,-151.0,0.00011693,2]
[399549857,1766477441035,-250.0,0.00011693,2]
[399549858,1766477441044,-151.0,0.00011693,2]
[399549859,1766477441054,-151.0,0.00011693,2]
[399549860,1766477441064,-151.0,0.00011693,2]
[399549861,1766477441073,-738.33671331,0.00011886,2]
[399549862,1766477441083,-1000.0,0.00011896,2]
[399549863,1766477441094,-1000.0,0.00011896,2]
[399549864,1766477441103,-1000.0,0.00011896,2]
[399549865,1766477441112,-1000.0,0.00011896,2]
[399549866,1766477441122,-384.732535,0.00011896,2]
[399549867,1766477441131,-1326.8350967,0.00011949,2]
[399549868,1766477441140,-877.38,0.00011975,2]
[399549869,1766477441150,-42220.71001618,0.00012,2]
[399549870,1766477441162,-6625.0,0.00012,2]
[399549880,1766477443039,-19.46505209,0.00012,2]
[399549881,1766477443050,-844.72804851,0.00012,2]
[399549882,1766477443139,-255.28721074,0.00012,2]
[399549895,1766477715547,5000.0,6.892e-05,2]
[399549896,1766477730791,2822.35572546,6.892e-05,2]
[399549897,1766477730814,1160.38331314,6.892e-05,2]
[399549898,1766477738685,5000.0,6.892e-05,2]
[399549899,1766477758385,-525.86,6.9e-05,2]
[399549900,1766477758411,-150.0,6.95e-05,2]
[399549901,1766477758438,-525.86,7e-05,2]
[399549902,1766477758464,-525.86,7.1e-05,2]
[399549903,1766477758489,-525.86,7.2e-05,2]
[399549904,1766477758515,-525.86,7.3e-05,2]
[399549905,1766477758540,-525.86,7.4e-05,2]
[399549906,1766477758567,-525.86,7.5e-05,2]
[399549907,1766477758592,-525.86,7.6e-05,2]
[399549908,1766477758616,-525.86,7.7e-05,2]
[399549909,1766477758641,-525.86,7.8e-05,2]
[399549910,1766477758666,-525.86,7.9e-05,2]
[399549911,1766477758691,-525.86,8e-05,2]
[399549912,1766477762895,5000.0,8e-05,2]
[399549913,1766477779365,162.15,6.9e-05,2]
[399549914,1766477823650,405.93,6.9e-05,2]
[399549915,1766477824386,405.93,7e-05,2]
[399549916,1766477824681,405.93,7.1e-05,2]
[399549917,1766477825401,405.93,7.2e-05,2]
[399549918,1766477825428,405.93,7.3e-05,2]
[399549919,1766477825860,405.93,7.4e-05,2]
[399549920,1766477826148,405.93,7.5e-05,2]
[399549921,1766477826503,405.93,7.6e-05,2]
[399549922,1766477826952,405.93,7.7e-05,2]
[399549923,1766477827386,405.93,7.8e-05,2]
[399549924,1766477827809,405.93,7.9e-05,2]
[399549925,1766477828258,405.93,8e-05,2]
[399549926,1766477845409,405.78,6.892e-05,2]
[399549927,1766477898579,150.77,6.9e-05,2]
[399549928,1766477899045,150.77,7e-05,2]
[399549929,1766477899404,150.77,7.2e-05,2]
[399549930,1766477899963,150.77,7.3e-05,2]
[399549931,1766477900352,150.77,7.5e-05,2]
[399549932,1766477900818,150.77,7.6e-05,2]
[399549933,1766477901262,150.77,7.8e-05,2]
[399549934,1766477901786,150.77,7.9e-05,2]
[399549935,1766477955783,324.51,6.9e-05,2]
[399549936,1766477956242,324.51,7e-05,2]
[399549937,1766477956636,324.51,7.1e-05,2]
[399549938,1766477957072,324.51,7.2e-05,2]
[399549939,1766477957534,324.51,7.3e-05,2]
[399549940,1766477957918,324.51,7.4e-05,2]
[399549941,1766477958355,324.51,7.5e-05,2]
[399549942,1766477958860,324.51,7.6e-05,2]
[399549943,1766477959294,324.51,7.7e-05,2]
[399549944,1766477960421,324.51,7.8e-05,2]
[399549945,1766477960478,324.51,7.9e-05,2]
[399549946,1766477960710,324.51,8e-05,2]
[399549947,1766477986958,5000.0,8e-05,2]
[399549948,1766478022654,159.3,6.9e-05,2]
[399549949,1766478023384,159.3,7e-05,2]
[399549950,1766478023764,159.3,7.1e-05,2]
[399549951,1766478024201,159.3,7.2e-05,2]
[399549952,1766478024576,159.3,7.3e-05,2]
[399549953,1766478024883,159.3,7.4e-05,2]
[399549954,1766478025254,159.3,7.5e-05,2]
[399549955,1766478025553,159.3,7.6e-05,2]
[399549956,1766478025915,159.3,7.7e-05,2]
[399549957,1766478026357,159.3,7.8e-05,2]
[399549958,1766478026729,159.3,7.9e-05,2]
[399549959,1766478027100,159.3,8e-05,2]
[399549960,1766478078684,284.86,6.9e-05,2]
[399549961,1766478079117,284.86,7e-05,2]
[399549962,1766478079637,284.86,7.1e-05,2]
[399549963,1766478080135,284.86,7.2e-05,2]
[399549964,1766478080597,284.86,7.3e-05,2]
[399549965,1766478080981,284.86,7.4e-05,2]
[399549966,1766478081417,284.86,7.5e-05,2]
[399549967,1766478081853,284.86,7.6e-05,2]
[399549968,1766478082287,284.86,7.7e-05,2]
[399549969,1766478082596,284.86,7.8e-05,2]
[399549970,1766478083031,284.86,7.9e-05,2]
[399549971,1766478083487,284.86,8e-05,2]
[399549974,1766478139532,189.43,6.9e-05,2]
[399549975,1766478140186,189.43,7e-05,2]
[399549976,1766478140618,189.43,7.1e-05,2]
[399549977,1766478140999,189.43,7.2e-05,2]
[399549978,1766478141374,189.43,7.3e-05,2]
[399549979,1766478141846,189.43,7.4e-05,2]
[399549980,1766478142252,189.43,7.5e-05,2]
[399549981,1766478142695,189.43,7.6e-05,2]
[399549982,1766478143164,189.43,7.7e-05,2]
[399549983,1766478143594,189.43,7.8e-05,2]
[399549984,1766478144040,189.43,7.9e-05,2]
[399549985,1766478144406,189.43,8e-05,2]
[399549986,1766478198729,261.96,6.9e-05,2]
[399549987,1766478199109,261.96,7e-05,2]
[399549988,1766478199574,261.96,7.1e-05,2]
[399549989,1766478200038,151.03,7.2e-05,2]
[399550023,1766478632856,-162.71,6.9e-05,2]
[399550024,1766478632868,-150.0,6.95e-05,2]
[399550025,1766478632880,-162.71,7e-05,2]
[399550026,1766478632891,-300.0,8.795e-05,2]
[399550027,1766478632902,-300.0,8.795e-05,2]
[399550028,1766478632913,-300.0,8.795e-05,2]
[399550029,1766478632925,-300.0,8.795e-05,2]
[399550030,1766478632936,-620.0,8.795e-05,2]
[399550031,1766478632947,-471.87796618,8.795e-05,2]
[399550032,1766478632958,-439.27923939,8.795e-05,2]
[399550033,1766478632970,-406.2871108,8.796e-05,2]
[399550034,1766478632981,-532.0,8.796e-05,2]
[399550035,1766478632993,-50000.0,8.797e-05,2]
[399550036,1766478633004,-177.0,8.95e-05,2]
[399550037,1766478633016,-594.63146917,9.329e-05,2]
[399550038,1766478633027,-420.0,9.674e-05,2]
[399550039,1766478633038,-150.0,9.831e-05,2]
[399550040,1766478633049,-178.91,0.0001,2]
[399550041,1766478633060,-600.0,0.00010169,2]
[399550042,1766478633071,-178.91,0.000102,2]
[399550043,1766478633082,-252.92,0.00010299,2]
[399550044,1766478633093,-379.39,0.00010767,2]
[399550045,1766478633104,-204.0,0.0001095,2]
[399550046,1766478633115,-720.0,0.00011186,2]
[399550047,1766478633130,-505.85,0.00011235,2]
[399550048,1766478633141,-533.88981491,0.00011368,2]
[399550049,1766478633152,-151.0,0.00011368,2]
[399550050,1766478633164,-151.0,0.00011368,2]
[399550051,1766478633174,-184.84562213,0.00011368,2]
[399550052,1766478633185,-2579.17784983,0.00011368,2]
[399550053,1766478633196,-195.97166193,0.00011504,2]
[399550054,1766478633208,-352.74899147,0.00011504,2]
[399550055,1766478633219,-627.10931817,0.00011504,2]
[399550056,1766478633230,-979.85830964,0.00011504,2]
[399550057,1766478633241,-1410.99596589,0.00011504,2]
[399550058,1766478633252,-1918.60176461,0.00011504,2]
[399550059,1766478633263,-202.21281809,0.00011504,2]
[399550060,1766478633273,-363.98307255,0.00011504,2]
[399550061,1766478633283,-647.08101787,0.00011504,2]
[399550062,1766478633294,-177.31583041,0.00011504,2]
[399550063,1766478633305,-1011.06409043,0.00011609,2]
[399550064,1766478633317,-632.31,0.00011703,2]
[399550065,1766478633328,-492.22447554,0.00011886,2]
[399550066,1766478633339,-553.64373807,0.00011916,2]
[399550067,1766478633350,-2674.60743027,0.00011916,2]
[399550068,1766478633361,-1454.47635792,0.00011979,2]
[399550069,1766478633371,-6116.54404363,0.00012,2]
[399550070,1766478633385,-1012.09377786,0.00012,2]
[399550071,1766478633397,-334.45923056,0.00012,2]
[399550080,1766478638046,-162.71,7.1e-05,2]
[399550081,1766478638056,-162.71,7.2e-05,2]
[399550082,1766478638065,-162.71,7.3e-05,2]
[399550083,1766478638075,-162.71,7.4e-05,2]
[399550084,1766478638084,-87.74845075,7.5e-05,2]
[399550085,1766478638096,-74.96154925,7.5e-05,2]
[399550086,1766478638105,-162.71,7.6e-05,2]
[399550087,1766478638115,-162.71,7.7e-05,2]
[399550088,1766478638128,-162.71,7.8e-05,2]
[399550089,1766478638138,-162.71,7.9e-05,2]
[399550090,1766478638148,-162.71,8e-05,2]
[399550091,1766478638157,-162.71,8.1e-05,2]
[399550092,1766478638170,-162.71,8.2e-05,2]
[399550093,1766478638180,-162.71,8.4e-05,2]
[399550094,1766478638190,-162.71,8.5e-05,2]
[399550095,1766478638203,-500.0,8.795e-05,2]
[399550096,1766478638213,-500.0,8.795e-05,2]
[399550097,1766478638222,-500.0,8.795e-05,2]
[399550098,1766478638232,-500.0,8.795e-05,2]
[399550099,1766478638241,-500.0,8.795e-05,2]
[399550100,1766478638251,-600.54316388,8.795e-05,2]
[399550101,1766478638260,-500.0,8.795e-05,2]
[399550102,1766478638270,-500.0,8.795e-05,2]
[399550103,1766478638281,-500.0,8.795e-05,2]
[399550104,1766478638291,-500.0,8.795e-05,2]
[399550105,1766478638302,-500.0,8.795e-05,2]
[399550106,1766478638312,-500.0,8.795e-05,2]
[399550107,1766478638321,-500.0,8.795e-05,2]
[399550108,1766478638330,-219.68430556,8.795e-05,2]
[399550109,1766478638340,-500.0,8.795e-05,2]
[399550110,1766478638349,-500.0,8.795e-05,2]
[399550111,1766478638359,-500.0,8.795e-05,2]
[399550112,1766478638368,-500.0,8.795e-05,2]
[399550113,1766478638377,-500.0,8.795e-05,2]
[399550114,1766478638387,-500.0,8.795e-05,2]
[399550115,1766478638396,-12778.60184707,0.00012,2]
[399550116,1766478638414,-162.71,8.6e-05,2]
[399550117,1766478638423,-11491.02353295,0.00012,2]
[399550118,1766478638435,-3665.11543935,0.00012,2]
[399550119,1766478638447,-1024.6242914,0.00012,2]
[399550120,1766478638458,-2831.46607915,0.00012,2]
[399550121,1766478638470,-4295.00459402,0.00012,2]
[399550122,1766478638481,-252.40685106,0.00012,2]
[399550207,1766478640845,-162.71,8.7e-05,2]
[399550209,1766478640854,-162.71,8.8e-05,2]
[399550211,1766478640863,-162.71,8.9e-05,2]
[399550213,1766478640872,-162.71,9e-05,2]
[399550215,1766478640881,-5870.88554121,0.00012,2]
[399550218,1766478640897,-2502.35060588,0.00012,2]
[399550220,1766478640908,-680.85834149,0.00012,2]
[399550222,1766478640925,-162.71,9.1e-05,2]
[399550224,1766478640934,-291.87,0.00012,2]
[399550226,1766478640944,-2711.83010996,0.00012,2]
[399550228,1766478640955,-900.0,0.00012,2]
[399550421,1766478646324,-162.71,9.2e-05,2]
[399550422,1766478646334,-162.71,9.3e-05,2]
[399550423,1766478646344,-162.71,9.4e-05,2]
[399550424,1766478646353,-162.71,9.5e-05,2]
[399550425,1766478646362,-162.71,9.6e-05,2]
[399550426,1766478646372,-162.71,9.7e-05,2]
[399550427,1766478646381,-162.71,9.8e-05,2]
[399550428,1766478646391,-150.0,9.828e-05,2]
[399550429,1766478646400,-162.71,9.9e-05,2]
[399550430,1766478646410,-162.71,0.0001,2]
[399550431,1766478646419,-162.71,0.000101,2]
[399550432,1766478646429,-162.71,0.000102,2]
[399550433,1766478646439,-204.04,0.00010296,2]
[399550434,1766478646448,-162.71,0.000103,2]
[399550435,1766478646458,-162.71,0.000104,2]
[399550436,1766478646467,-306.06,0.00010764,2]
[399550437,1766478646477,-408.08,0.00011232,2]
[399550438,1766478646486,-35521.08352635,0.00012,2]
[399550439,1766478646498,-19743.40293827,0.00012,2]
[399550477,1766479838342,-200.0,8.767e-05,2]
[399550478,1766479838351,-357.66978425,8.785e-05,2]
[399550479,1766479838452,-142.33021575,8.785e-05,2]
[399550480,1766479838461,-500.0,8.785e-05,2]
[399550481,1766479838471,-500.0,8.785e-05,2]
[399550482,1766479838481,-246.63158951,8.785e-05,2]
[399550483,1766479838490,-500.0,8.785e-05,2]
[399550484,1766479838500,-500.0,8.785e-05,2]
[399550485,1766479838511,-500.0,8.785e-05,2]